bitfinex-derivatives/quotes_SOLF0:USTF0_20250207
["timestamp","ask_amount","ask_price","bid_price","bid_amount"]
[1738955898996,5.061,197.52,197.51,1.595e-05]
[1738955900300,18.90241741,197.52,197.51,1.595e-05]
[1738955900700,13.84141741,197.52,197.39,13.84141741]
[1738955900902,5.0624,197.47,197.39,13.84141741]
[1738955901104,13.84141741,197.52,197.39,13.84141741]
[1738955902000,0.03897633,197.47,197.39,13.84141741]
[1738955903098,0.03897633,197.47,197.42,13.84141741]
[1738955903307,0.03897633,197.47,197.45,13.84141741]
[1738955903800,5.0608,197.53,197.45,13.84141741]
[1738955904202,19.10321741,197.58,197.45,13.84141741]
[1738955904599,15.38321741,197.58,197.43,3.4613]
[1738955904905,0.03515945,197.53,197.52,5.061]
[1738955905204,5.0594,197.58,197.5,0.03490252]
[1738955905400,0.03253873,197.54,197.5,0.03490252]
[1738955906709,0.03253873,197.54,197.5,5.09630252]
[1738955907300,0.03253873,197.54,197.5,0.03490252]
[1738955907606,5.09323873,197.54,197.5,0.03490252]
[1738955908302,5.09323873,197.54,197.5,5.09630252]
[1738955908907,5.09323873,197.54,197.5,0.03490252]
[1738955909709,5.09323873,197.54,197.5,5.09630252]
[1738955910705,5.0607,197.53,197.5,0.03490252]
[1738955910906,0.03253873,197.54,197.5,0.03490252]
[1738955911405,5.0612,197.51,197.5,0.03490252]
[1738955911801,0.03253873,197.54,197.5,0.03490252]
[1738955912006,5.0608,197.53,197.5,0.03490252]
[1738955912307,0.03253873,197.54,197.5,0.03490252]
[1738955912807,13.84141741,197.52,197.39,13.84141741]
[1738955913209,1.8769,197.51,197.43,5.0632]
[1738955914011,0.03291837,197.49,197.43,5.0632]
[1738955914314,13.87433578,197.49,197.36,15.83791741]
[1738955914516,13.84141741,197.49,197.36,13.84141741]
[1738955914807,0.03676088,197.44,197.39,5.064]
[1738955915002,0.03676088,197.44,197.36,13.84141741]
[1738955915403,0.03676088,197.44,197.38,5.0644]
[1738955915604,0.03676088,197.44,197.34,3.0122]
[1738955915811,0.03676088,197.44,197.34,1.4994]
[1738955916114,5.064,197.41,197.36,5.0648]
[1738955916414,5.064,197.4,197.35,5.0653]
[1738955916913,0.03786914,197.39,197.35,5.0653]
[1738955917118,0.03786914,197.39,197.3,1.9965]
[1738955917615,0.03786914,197.39,197.32,5.0661]
[1738955917915,0.03786914,197.39,197.26,23.78075849]
[1738955918108,1.4791,197.41,197.26,23.78075849]
[1738955918601,0.0350388,197.34,197.26,23.78075849]
[1738955918806,0.0350388,197.34,197.31,5.0663]
[1738955919213,0.0350388,197.34,197.26,1.6047]
[1738955921815,0.0350388,197.34,197.29,5.0668]
[1738955922314,0.0350388,197.34,197.26,1.6047]
[1738955922516,0.0350388,197.34,197.27,5.0672]
[1738955922713,0.0350388,197.34,197.21,2.0705]
[1738955923009,5.0667,197.3,197.25,5.0676]
[1738955923315,0.0322177,197.29,197.21,2.0705]
[1738955924817,0.0322177,197.29,197.25,5.0679]
[1738955926806,5.0991177,197.29,197.25,5.0679]
[1738955927013,5.0991177,197.29,197.24,5.0681]
[1738955927213,0.0322177,197.29,197.21,2.0705]
[1738955927713,5.0686,197.23,197.17,6.646]
[1738955928013,22.17605849,197.28,197.12,3.4956]
[1738955928216,5.0691,197.21,197.15,5.0702]
[1738955928915,5.0692,197.2,197.15,5.0702]
[1738955929512,0.03765661,197.22,197.08,22.17605849]
[1738955929718,22.2137151,197.22,197.05,23.72235849]
[1738955929917,22.17605849,197.22,197.1,5.0717]
[1738955930116,0.03235852,197.15,197.05,23.72235849]
[1738955930811,5.10305852,197.15,197.09,5.0718]
[1738955932215,0.03235852,197.15,197.08,22.17605849]
[1738955932723,0.03235852,197.15,197.12,5.0712]
[1738955933020,5.0715,197.11,197.01,22.17605849]
[1738955933221,0.03235852,197.15,196.88,69.43651075]
[1738955933222,22.17605849,197.16,196.98,25.70175849]
[1738955933415,3.6043,197.15,196.99,1.6117]
[1738955933723,0.03440463,197.08,196.99,1.6117]
[1738955934017,0.03440463,197.08,197.05,5.0728]
[1738955934222,0.03440463,197.08,196.99,1.6117]
[1738955934223,0.03440463,197.08,196.98,22.17605849]
[1738955934420,0.03440463,197.08,196.99,5.1284]
[1738955934620,0.03440463,197.08,197.01,5.0739]
[1738955934821,0.03440463,197.08,196.99,5.1284]
[1738955935728,0.03440463,197.08,197.07,5.0725]
[1738955936518,1.6164,197.18,197.04,22.17605849]
[1738955936722,1.4848,197.2,197.09,13.89005568]
[1738955937830,0.03786185,197.16,197.13,0.03844599]
[1738955938124,13.89005568,197.19,197.06,13.89005568]
[1738955938327,13.92878142,197.16,197.13,0.03894816]
[1738955938627,0.03872574,197.16,197.13,0.03894816]
[1738955939817,5.10892574,197.16,197.13,0.03894816]
[1738955940025,0.03872574,197.16,197.13,0.03894816]
[1738955941224,5.0707,197.14,197.13,0.03894816]
[1738955942226,22.27295945,197.16,196.99,5.1284]
[1738955942429,22.23423371,197.13,197.05,5.073]
[1738955942831,2.0096,197.15,197.0,22.23423371]
[1738955943030,2.0096,197.15,197.09,5.0719]
[1738955943529,0.03784377,197.14,197.03,22.23423371]
[1738955943830,0.03784377,197.14,197.09,5.0718]
[1738955944025,0.03784377,197.14,197.03,22.23423371]
[1738955944330,0.03784377,197.14,197.1,5.0717]
[1738955944530,0.03784377,197.14,197.03,22.23423371]
[1738955944732,5.0712,197.13,197.0,22.23423371]
[1738955945234,0.03870202,197.08,197.0,22.23423371]
[1738955945435,0.03870202,197.08,197.07,5.0725]
[1738955948432,5.0703,197.16,197.11,5.0713]
[1738955948631,3.5091,197.2,197.09,22.23423371]
[1738955948831,3.5091,197.2,197.0,25.97423371]
[1738955948832,191.0,197.23,197.12,22.23423371]
[1738955949535,5.0687,197.22,197.12,22.23423371]
[1738955949730,0.03820836,197.18,197.15,0.03406963]
[1738955950136,0.03820836,197.18,197.17,5.0699]
[1738955951937,5.0679,197.26,197.15,0.03406963]
[1738955952131,191.0,197.31,197.15,22.26830334]
[1738955952431,191.0,197.31,197.13,3.4544]
[1738955952432,191.0,197.31,197.18,22.23423371]
[1738955952627,22.23423371,197.27,197.13,3.4544]
[1738955952832,22.23423371,197.27,197.01,202.148]
[1738955952833,22.23423371,197.24,197.06,22.23423371]
[1738955953035,25.97423371,197.24,197.06,22.23423371]
[1738955953233,0.03666072,197.17,197.13,0.03418288]
[1738955953428,0.03666072,197.17,197.13,5.10518288]
[1738955953635,0.03666072,197.17,197.13,0.03418288]
[1738955954938,0.03666072,197.17,197.16,5.0702]
[1738955956340,0.03666072,197.17,197.13,0.03418288]
[1738955956341,0.03666072,197.17,197.14,5.0705]
[1738955956639,0.03666072,197.17,197.13,0.03418288]
[1738955957038,0.03666072,197.17,197.14,5.0707]
[1738955957337,0.03666072,197.17,197.13,0.03418288]
[1738955957739,5.0702,197.16,197.13,0.03418288]
[1738955958746,0.03666072,197.17,197.13,0.03418288]
[1738955959840,1.94306072,197.17,197.13,0.03418288]
[1738955960041,5.0707,197.14,197.13,0.03418288]
[1738955960644,1.94306072,197.17,197.13,0.03418288]
[1738955960844,0.03666072,197.17,197.13,0.03418288]
[1738955961244,0.03666072,197.17,197.14,5.0706]
[1738955961539,0.03666072,197.17,197.13,0.03418288]
[1738955961744,0.03666072,197.17,197.15,5.0703]
[1738955961941,0.03666072,197.17,197.13,0.03418288]
[1738955962439,0.03666072,197.17,197.16,5.0702]
[1738955962639,3.1188,197.26,197.13,0.03418288]
[1738955962843,3.1188,197.26,197.15,22.22742884]
[1738955963144,3.74,197.28,197.15,22.22742884]
[1738955963345,1.8702,197.29,197.15,22.22742884]
[1738955963541,5.0672,197.28,197.23,5.0684]
[1738955963741,0.0375705,197.24,197.2,0.0370826]
[1738955964436,0.0375705,197.24,197.23,5.0684]
[1738955966845,1.8781,197.34,197.2,0.0370826]
[1738955967144,1.8781,197.34,197.22,22.22742884]
[1738955967550,5.0669,197.29,197.24,5.0681]
[1738955967744,22.22742884,197.32,197.19,3.0724]
[1738955968046,0.03803065,197.28,197.25,0.03871266]
[1738955968649,5.0675,197.27,197.25,0.03871266]
[1738955968847,0.03803065,197.28,197.25,0.03871266]
[1738955969148,5.0676,197.26,197.25,0.03871266]
[1738955969345,0.03803065,197.28,197.13,1.967]
[1738955969545,22.22742884,197.29,197.13,1.967]
[1738955970448,0.03633307,197.23,197.19,5.10341382]
[1738955970845,0.03633307,197.23,197.19,0.03421382]
[1738955971848,0.03633307,197.23,197.2,5.0691]
[1738955972051,0.03633307,197.23,197.19,0.03421382]
[1738955972552,0.03633307,197.23,197.2,5.0691]
[1738955972849,0.03633307,197.23,197.19,0.03421382]
[1738955974852,5.0691,197.21,197.19,0.03421382]
[1738955975151,0.03633307,197.23,197.19,0.03421382]
[1738955975351,5.0691,197.21,197.19,0.03421382]
[1738955976247,5.0692,197.2,197.19,0.03421382]
[1738955977352,0.03633307,197.23,197.19,0.03421382]
[1738955977851,5.0692,197.2,197.19,0.03421382]
[1738955978651,0.03633307,197.23,197.19,0.03421382]
[1738955978852,0.03633307,197.23,197.19,5.10351382]
[1738955979151,0.03633307,197.23,197.19,0.03421382]
[1738955979352,5.0692,197.2,197.19,0.03421382]
[1738955980848,0.03633307,197.23,197.12,13.88589968]
[1738955981053,13.88589968,197.22,197.09,15.48289968]
[1738955981254,13.88589968,197.22,197.09,1.597]
[1738955982157,0.03761328,197.17,197.14,0.03559451]
[1738955983058,13.88589968,197.16,197.03,15.43199968]
[1738955983254,15.47389968,197.16,197.03,15.43199968]
[1738955983657,5.071,197.13,197.08,5.072]
[1738955984160,0.03205518,197.12,197.09,0.03814356]
[1738955985362,0.03205518,197.12,197.1,5.0717]
[1738955985966,0.03205518,197.12,197.09,0.03814356]
[1738955986563,5.0717,197.11,197.09,0.03814356]
[1738955988062,0.03205518,197.12,197.0,13.88589968]
[1738955988266,13.88589968,197.13,197.0,13.88589968]
[1738955988267,1.9443,197.11,197.0,13.88589968]
[1738955989070,1.9443,197.11,197.08,5.0723]
[1738955989365,8.112e-05,197.07,197.06,13.88589968]
[1738955989675,5.0705,197.15,197.1,5.0715]
[1738955990375,1.588,197.16,197.06,20.42589968]
[1738955990568,0.03692659,197.14,197.12,5.0712]
[1738955990768,0.03692659,197.14,197.11,0.03715866]
[1738955991672,0.03692659,197.14,197.13,5.071]
[1738955992266,2.659e-05,197.14,197.13,5.071]
[1738955994667,2.659e-05,197.14,197.11,0.03715866]
[1738955994873,2.659e-05,197.14,197.11,5.10835866]
[1738955995266,2.659e-05,197.14,197.11,0.03715866]
[1738955996573,2.659e-05,197.14,197.13,5.071]
[1738956001077,2.659e-05,197.14,197.11,5.10845866]
[1738956001980,2.659e-05,197.14,197.11,0.03715866]
[1738956004382,2.659e-05,197.14,197.11,5.10865866]
[1738956005377,2.659e-05,197.14,197.11,0.03715866]
[1738956005577,2.022,197.24,197.12,22.21578429]
[1738956005881,7.0904,197.24,197.17,5.0698]
[1738956006084,7.0904,197.24,197.15,22.21578429]
[1738956006577,2.022,197.24,197.15,22.21578429]
[1738956006777,0.03589572,197.21,197.18,22.25064979]
[1738956007173,0.03538052,197.21,197.18,22.25064979]
[1738956007578,0.03538052,197.21,197.2,5.0692]
[1738956010987,0.03538052,197.21,197.19,5.0694]
[1738956011886,0.03538052,197.21,197.2,5.0692]
[1738956012283,16.25464956,197.34,197.18,22.25064979]
[1738956012483,5.066,197.33,197.28,5.0671]
[1738956012884,5.1249,197.34,197.3,5.0664]
[1738956013088,13.86786067,197.38,197.25,13.86786067]
[1738956013286,13.86786067,197.38,197.3,0.03512398]
[1738956013589,0.03393153,197.33,197.3,0.03512398]
[1738956014086,0.03393153,197.33,197.3,5.10172398]
[1738956014282,0.03393153,197.33,197.3,0.03512398]
[1738956016089,0.03393153,197.33,197.31,5.0662]
[1738956016690,0.03393153,197.33,197.32,5.0661]
[1738956017384,0.03393153,197.33,197.3,0.03512398]
[1738956017986,0.03393153,197.33,197.3,5.10152398]
[1738956018188,0.03393153,197.33,197.3,0.03512398]
[1738956018385,0.03393153,197.33,197.3,22.22142541]
[1738956019192,0.03393153,197.33,197.32,5.0661]
[1738956020397,100.4,197.48,197.39,5.0643]
[1738956020590,5.0626,197.46,197.34,22.18630143]
[1738956020992,5.0626,197.46,197.4,5.064]
[1738956021194,5.0628,197.45,197.4,5.064]
[1738956021594,0.03526778,197.44,197.41,0.03428698]
[1738956022890,0.03526778,197.44,197.41,5.09778698]
[1738956024093,0.03526778,197.44,197.41,0.03428698]
[1738956028402,0.03526778,197.44,197.41,5.09788698]
[1738956028798,0.03526778,197.44,197.41,0.03428698]
[1738956030801,5.09836778,197.44,197.41,0.03428698]
[1738956030999,0.03526778,197.44,197.41,0.03428698]
[1738956031403,0.03526778,197.44,197.31,1.5908]
[1738956031598,22.18630143,197.44,197.28,22.18630143]
[1738956031800,5.0649,197.37,197.31,5.0662]
[1738956032001,5.0649,197.37,197.28,22.18630143]
[1738956032302,3.5611,197.43,197.28,22.18630143]
[1738956032504,0.03790489,197.34,197.31,0.03423388]
[1738956032701,5.0653,197.36,197.28,22.18630143]
[1738956032901,0.03243107,197.34,197.31,0.03213216]
[1738956033102,5.0658,197.34,197.28,5.0671]
[1738956033400,5.10071849,197.34,197.31,0.03797028]
[1738956033598,5.0658,197.33,197.31,0.03797028]
[1738956034105,0.03491849,197.34,197.31,0.03797028]
[1738956034296,5.0661,197.32,197.31,0.03797028]
[1738956034894,0.03491849,197.34,197.23,5.0684]
[1738956035098,3.4176,197.33,197.23,5.0684]
[1738956036005,0.03413812,197.3,197.26,0.03516291]
[1738956037203,0.03413812,197.3,197.27,13.8692694]
[1738956038609,0.03413812,197.3,197.27,5.0671]
[1738956038910,0.03413812,197.3,197.26,0.03516291]
[1738956039812,5.10073812,197.3,197.26,0.03516291]
[1738956040113,0.03413812,197.3,197.26,0.03516291]
[1738956040312,0.03413812,197.3,197.26,5.10276291]
[1738956040611,0.03413812,197.3,197.26,0.03516291]
[1738956040912,0.03413812,197.3,197.28,5.0671]
[1738956041111,0.03413812,197.3,197.26,0.03516291]
[1738956041112,3.812e-05,197.3,197.29,22.1887861]
[1738956041311,3.3483,197.41,197.29,22.1887861]
[1738956041506,3.3483,197.41,197.32,22.1887861]
[1738956042011,3.3483,197.41,197.37,5.0647]
[1738956042311,5.0632,197.44,197.37,5.09855266]
[1738956042509,0.03827525,197.41,197.37,0.03385266]
[1738956042715,0.03827525,197.41,197.4,5.064]
[1738956043917,1.5304,197.48,197.38,22.1887861]
[1738956043918,1.5304,197.48,197.42,5.0633]
[1738956044219,6.5924,197.48,197.42,5.0633]
[1738956045113,0.03823605,197.47,197.43,0.0387441]
[1738956047519,0.03823605,197.47,197.46,5.0625]
[1738956048318,0.03823605,197.47,197.44,5.0628]
[1738956048519,0.03823605,197.47,197.43,0.0387441]
[1738956049018,0.03823605,197.47,197.44,5.063]
[1738956049723,0.03823605,197.47,197.43,0.0387441]
[1738956050025,0.03823605,197.47,197.43,8.5287441]
[1738956050619,0.03823605,197.47,197.44,5.0629]
[1738956051125,0.03823605,197.47,197.43,8.5287441]
[1738956051825,0.03823605,197.47,197.46,5.0625]
[1738956057536,0.03823605,197.47,197.44,5.0628]
[1738956058028,0.03823605,197.47,197.46,5.0625]
[1738956061030,5.0601,197.56,197.51,5.0612]
[1738956061436,1.875,197.59,197.47,22.1887861]
[1738956061636,5.0597,197.57,197.47,22.1887861]
[1738956062037,0.03245771,197.54,197.51,5.061]
[1738956062535,0.03245771,197.54,197.5,0.03756699]
[1738956062836,5.0608,197.53,197.5,0.03756699]
[1738956063029,0.03245771,197.54,197.5,0.03756699]
[1738956063427,5.09315771,197.54,197.5,0.03756699]
[1738956064437,5.09315771,197.54,197.5,5.09896699]
[1738956064633,0.03245771,197.54,197.5,0.03756699]
[1738956065440,0.03245771,197.54,197.51,5.0612]
[1738956065834,0.03245771,197.54,197.5,0.03756699]
[1738956066229,0.03245771,197.54,197.53,5.0607]
[1738956066839,0.03245771,197.54,197.5,0.03756699]
[1738956067434,5.09295771,197.54,197.5,0.03756699]
[1738956068337,5.061,197.52,197.5,0.03756699]
[1738956070442,5.0612,197.51,197.5,0.03756699]
[1738956070641,5.0612,197.51,197.46,5.0625]
[1738956070642,16.92555153,197.53,197.43,8.49]
[1738956071041,5.0615,197.5,197.44,5.0628]
[1738956071242,16.92555153,197.53,197.44,5.0628]
[1738956071636,16.92555153,197.53,197.43,8.49]
[1738956071942,0.03375646,197.5,197.47,0.03432631]
[1738956072340,0.03375646,197.5,197.49,5.0617]
[1738956072644,3.3855,197.59,197.49,13.83895153]
[1738956073047,8.4449,197.59,197.49,13.83895153]
[1738956073246,3.3855,197.59,197.49,13.83895153]
[1738956074045,0.0384305,197.56,197.54,5.0604]
[1738956074246,0.0384305,197.56,197.52,13.87444981]
[1738956074543,0.0384305,197.56,197.53,5.0605]
[1738956075438,0.0384305,197.56,197.55,5.0602]
[1738956078243,0.0384305,197.56,197.54,5.0604]
[1738956078551,0.0384305,197.56,197.52,13.87444981]
[1738956079145,0.0384305,197.56,197.52,18.93524981]
[1738956079549,0.0384305,197.56,197.53,5.0607]
[1738956081851,5.0983305,197.56,197.52,0.03549828]
[1738956082350,5.0607,197.53,197.52,0.03549828]
[1738956082748,0.0384305,197.56,197.52,0.03549828]
[1738956083250,13.87738203,197.56,197.43,22.32895153]
[1738956083446,13.83895153,197.53,197.43,8.49]
[1738956083648,13.83895153,197.53,197.44,5.063]
[1738956083649,5.0617,197.5,197.44,5.063]
[1738956083953,13.83895153,197.53,197.44,5.063]
[1738956084250,5.0614,197.51,197.44,5.063]
[1738956084450,0.03648667,197.5,197.47,0.03380097]
[1738956086050,0.03648667,197.5,197.43,8.49]
[1738956086445,5.062,197.48,197.43,8.49]
[1738956087156,5.062,197.48,197.44,0.03268007]
[1738956088055,1.9119,197.49,197.44,0.03268007]
[1738956088256,1.9119,197.49,197.44,5.09548007]
[1738956088757,1.9119,197.49,197.44,0.03268007]
[1738956088958,3.4467,197.49,197.44,0.03268007]
[1738956090753,5.0624,197.47,197.44,0.03268007]
[1738956092057,5.0551,197.49,197.44,0.03268007]
[1738956093556,5.0551,197.49,197.38,5.0645]
[1738956093749,5.0551,197.49,197.37,13.83895153]
[1738956093750,13.83895153,197.47,197.34,13.83895153]
[1738956094152,13.83895153,197.47,197.36,5.065]
[1738956094754,0.03292561,197.43,197.4,0.03697683]
[1738956095054,0.03292561,197.43,197.4,13.87592836]
[1738956095249,191.0,197.54,197.4,27.71487989]
[1738956095448,13.83895153,197.56,197.48,5.0618]
[1738956095449,23.85173474,197.56,197.48,5.0618]
[1738956095753,14.64715615,197.56,197.49,13.83895153]
[1738956095955,5.0607,197.53,197.46,13.83895153]
[1738956096558,0.03716098,197.51,197.48,0.03445045]
[1738956098159,5.0617,197.49,197.48,0.03445045]
[1738956099057,5.0617,197.49,197.48,5.97445045]
[1738956099558,13.83895153,197.5,197.4,13.83895153]
[1738956100658,0.03618048,197.47,197.43,0.03520265]
[1738956100957,5.0622,197.47,197.42,5.0635]
[1738956101158,5.09832271,197.47,197.43,0.03462376]
[1738956101758,0.03612271,197.47,197.43,0.03462376]
[1738956101959,5.0625,197.46,197.43,0.03462376]
[1738956102255,22.16044213,197.46,197.29,22.16044213]
[1738956102458,22.16044213,197.43,197.26,22.16044213]
[1738956103457,0.03781869,197.36,197.33,0.03327587]
[1738956103956,0.03510055,197.36,197.33,0.0348902]
[1738956104556,0.03510055,197.36,197.2,50.22523761]
[1738956104956,22.16044213,197.34,197.2,28.06479548]
[1738956105159,22.16044213,197.34,197.23,5.0681]
[1738956105452,22.16044213,197.34,197.2,28.06479548]
[1738956105653,5.0679,197.25,197.2,5.0692]
[1738956106255,0.03220246,197.24,197.2,5.0692]
[1738956107151,0.03220246,197.24,197.13,3.4071]
[1738956107355,0.03220246,197.24,197.21,22.16044213]
[1738956107753,0.03220246,197.24,197.15,22.16044213]
[1738956107955,0.03220246,197.24,197.13,3.4071]
[1738956108157,5.0689,197.21,197.13,3.4071]
[1738956108559,5.0689,197.21,197.13,8.478]
[1738956108864,0.03834283,197.19,197.13,6.6312]
[1738956109363,0.03834283,197.19,197.14,5.0707]
[1738956109862,0.03834283,197.19,197.07,22.16044213]
[1738956110253,22.16044213,197.23,197.07,22.16044213]
[1738956110458,0.03890724,197.15,197.09,5.0719]
[1738956113863,0.03890724,197.15,197.11,5.0715]
[1738956114065,0.03890724,197.15,197.07,22.16044213]
[1738956114258,0.03890724,197.15,197.1,22.16044213]
[1738956116063,0.03890724,197.15,197.14,5.0707]
[1738956118161,1.6265,197.24,197.18,5.0695]
[1738956118365,24.18314213,197.29,197.13,22.16044213]
[1738956119269,24.18314213,197.29,197.19,5.10654625]
[1738956119270,0.03868763,197.22,197.19,5.10654625]
[1738956119870,0.03868763,197.22,197.19,0.03714625]
[1738956120468,5.0692,197.2,197.19,0.03714625]
[1738956121166,0.03868763,197.22,197.07,22.16044213]
[1738956121360,5.0706,197.15,197.06,1.5792]
[1738956121763,22.16044213,197.2,197.06,1.5792]
[1738956121964,1.995,197.19,197.06,1.5792]
[1738956122261,1.995,197.19,197.09,5.0718]
[1738956122464,0.03323837,197.14,197.09,5.0718]
[1738956122863,0.03323837,197.14,197.03,22.16044213]
[1738956123062,1.995,197.19,197.03,22.16044213]
[1738956123266,0.03610581,197.1,197.03,5.0733]
[1738956123459,5.0735,197.03,196.96,1.5296]
[1738956123660,22.16044213,197.08,196.91,25.75754213]
[1738956123864,2.0211,197.07,196.91,25.75754213]
[1738956124060,5.1126441,197.01,196.94,5.0756]
[1738956124264,0.0384441,197.01,196.88,22.16044213]
[1738956124667,5.0743,197.0,196.88,22.16044213]
[1738956124862,0.03255657,196.96,196.88,22.16044213]
[1738956125166,5.0756,196.95,196.88,5.0772]
[1738956125360,5.0756,196.95,196.87,1.5296]
[1738956125772,0.03255657,196.96,196.88,5.0773]
[1738956125973,0.03255657,196.96,196.88,22.16044213]
[1738956126462,0.03255657,196.96,196.94,5.0759]
[1738956126660,1.5432,197.04,196.91,22.16044213]
[1738956127367,5.073,197.05,196.96,5.0752]
[1738956127675,2.0211,197.07,196.94,22.16044213]
[1738956127963,0.03307467,197.02,196.99,0.03237132]
[1738956129368,0.03307467,197.02,196.99,5.10697132]
[1738956129871,0.03307467,197.02,196.99,0.03237132]
[1738956131369,5.0741,197.01,196.99,0.03237132]
[1738956131977,0.03307467,197.02,197.0,5.0742]
[1738956132574,0.03307467,197.02,197.01,5.0741]
[1738956134070,55.67108482,197.1,197.0,22.16044213]
[1738956134270,55.67108482,197.1,197.0,23.74474213]
[1738956134271,50.59908482,197.1,197.0,23.74474213]
[1738956134871,50.59908482,197.1,197.0,1.5843]
[1738956135371,0.03519189,197.07,197.03,0.03576816]
[1738956136476,5.0733,197.04,197.03,0.03576816]
[1738956136679,0.03519189,197.07,196.95,1.8343]
[1738956136875,22.16044213,197.08,196.95,1.8343]
[1738956137071,5.074,197.02,196.95,1.8343]
[1738956137380,22.16044213,197.08,196.95,1.8343]
[1738956137580,5.0736,197.03,196.97,5.0749]
[1738956137774,0.0374682,197.03,197.0,0.0326686]
[1738956137970,0.0374682,197.03,196.8,224.31934213]
[1738956137971,3.78,197.03,196.87,22.16044213]
[1738956138177,3.78,197.03,196.89,5.0771]
[1738956138373,3.3653,197.02,196.89,5.0771]
[1738956138689,5.0748,196.99,196.89,5.0771]
[1738956138979,3.3653,197.02,196.85,1.8988]
[1738956139183,0.0353401,196.96,196.91,5.0766]
[1738956139682,0.0353401,196.96,196.93,5.0759]
[1738956139983,0.0353401,196.96,196.87,22.16044213]
[1738956140683,0.0353401,196.96,196.9,22.16044213]
[1738956141479,0.0353401,196.96,196.93,5.076]
[1738956141786,0.0353401,196.96,196.9,22.16044213]
[1738956142583,0.0353401,196.96,196.93,5.0759]
[1738956143090,0.0353401,196.96,196.94,5.0758]
[1738956143778,0.0353401,196.96,196.95,5.0756]
[1738956143973,1.4957,197.06,196.93,22.16044213]
[1738956144178,1.4957,197.06,196.94,0.03728941]
[1738956144379,5.0736,197.03,196.93,22.16044213]
[1738956145086,0.03608083,197.0,196.98,5.0746]
[1738956145286,5.0733,197.04,196.98,5.0746]
[1738956145587,0.03470725,197.01,196.97,0.03619743]
[1738956145787,5.0259,197.12,196.97,22.16044213]
[1738956146087,0.03890206,197.01,196.97,22.19522141]
[1738956146385,5.0726,197.07,197.01,5.074]
[1738956146778,0.03230629,197.06,197.02,0.03552232]
[1738956146980,6.29e-06,197.06,197.02,0.03552232]
[1738956147488,6.29e-06,197.06,197.05,5.073]
[1738956147684,6.29e-06,197.06,197.02,1.61932232]
[1738956148789,6.29e-06,197.06,197.02,0.03552232]
[1738956149588,6.29e-06,197.06,197.04,5.0731]
[1738956149983,6.29e-06,197.06,197.02,0.03552232]
[1738956150387,6.29e-06,197.06,197.02,1.67932232]
[1738956150790,6.29e-06,197.06,197.04,5.0732]
[1738956150990,6.29e-06,197.06,197.02,1.67932232]
[1738956152290,6.29e-06,197.06,197.05,5.073]
[1738956152490,6.29e-06,197.06,197.02,1.67932232]
[1738956152892,6.29e-06,197.06,197.05,5.073]
[1738956153294,3.4272,197.18,197.04,22.16044213]
[1738956153587,3.4272,197.18,197.07,22.16044213]
[1738956153984,1.616,197.19,197.07,22.16044213]
[1738956154187,3.8,197.23,197.08,1.942]
[1738956154387,3.8,197.23,197.08,3.4548]
[1738956154595,0.03492515,197.17,197.14,0.03497232]
[1738956156895,5.0705,197.15,197.14,0.03497232]
[1738956158287,5.0725,197.07,197.03,1.9677]
[1738956158487,5.0725,197.07,197.02,1.6438]
[1738956158692,22.16044213,197.13,197.02,1.6438]
[1738956158895,5.0718,197.1,197.02,6.7176]
[1738956159093,22.16044213,197.13,197.02,6.7176]
[1738956159293,22.16044213,197.13,196.95,25.74434213]
[1738956159493,5.0728,197.07,197.06,0.03659326]
[1738956159689,0.0383207,197.09,197.02,5.0738]
[1738956160089,5.0723,197.08,197.05,0.03206612]
[1738956160295,0.0383207,197.09,197.05,0.03206612]
[1738956160900,5.0727,197.07,197.05,0.03206612]
[1738956161094,0.0383207,197.09,197.05,0.03206612]
[1738956161301,5.1104207,197.09,197.05,0.03206612]
[1738956162902,0.0383207,197.09,197.05,5.10506612]
[1738956163602,5.1103207,197.09,197.05,0.03206612]
[1738956165002,0.0383207,197.09,197.06,5.0728]
[1738956165199,0.0383207,197.09,197.05,0.03206612]
[1738956165594,0.0383207,197.09,197.08,5.0723]
[1738956168700,0.0383207,197.09,197.06,5.0727]
[1738956169606,0.0383207,197.09,197.07,5.0725]
[1738956169805,0.0383207,197.09,197.05,1.98056612]
[1738956170302,0.0383207,197.09,197.08,5.0723]
[1738956171409,0.0383207,197.09,197.05,1.98056612]
[1738956171609,0.0383207,197.09,197.06,5.0725]
[1738956172514,0.0383207,197.09,197.08,5.0723]
[1738956173710,25.53734213,197.22,197.12,5.071]
[1738956173912,5.0702,197.17,197.12,5.071]
[1738956174112,3.3769,197.22,197.11,5.0714]
[1738956174815,3.3769,197.22,197.15,0.03347975]